bitfinex-derivatives/quotes_ETHF0:USTF0_20210107
["timestamp","ask_amount","ask_price","bid_price","bid_amount"]
[1610023758995,7.377,1207.6,1206.3,62.8495]
[1610023760495,11.051,1207.6,1206.3,62.8495]
[1610023764200,3.674,1207.6,1206.3,62.8495]
[1610023767105,3.674,1207.6,1205.2,12.0882]
[1610023767304,70.9941,1207.6,1205.4,46.6112]
[1610023768109,4.00959,1207.4,1205.4,46.6112]
[1610023773110,4.00959,1207.4,1205.2,12.0882]
[1610023773310,4.00959,1207.4,1206.4,59.1623]
[1610023773709,3.674,1207.6,1206.4,59.1623]
[1610023776313,4.00959,1208.2,1206.4,59.1623]
[1610023779617,4.00959,1208.2,1205.2,12.0882]
[1610023780019,4.00959,1208.2,1206.5,52.7288]
[1610023780218,4.00959,1208.2,1205.2,12.0882]
[1610023780418,4.00959,1208.2,1206.3,66.9733]
[1610023781618,4.00959,1208.2,1205.2,12.0882]
[1610023781819,4.00959,1208.2,1206.6,59.338]
[1610023782022,16.9509,1208.7,1205.2,12.0882]
[1610023782221,11.051,1208.7,1207.6,64.2309]
[1610023784423,4.00959,1208.5,1207.6,64.2309]
[1610023784623,11.051,1208.7,1207.6,64.2309]
[1610023792337,4.00959,1208.6,1206.2,6.1882]
[1610023792736,4.00959,1208.6,1206.7,59.7402]
[1610023794337,4.00959,1208.3,1206.7,59.7402]
[1610023796839,4.00959,1208.3,1206.1,5.8388]
[1610023797038,4.00959,1208.3,1207.1,46.8457]
[1610023797239,4.00959,1208.3,1206.1,5.8388]
[1610023797439,11.051,1208.7,1207.1,61.4199]
[1610023797638,11.051,1208.7,1206.1,5.8388]
[1610023797839,11.051,1208.7,1207.1,62.1957]
[1610023798041,11.051,1208.7,1206.1,5.8388]
[1610023798245,11.051,1208.7,1207.1,65.0384]
[1610023798443,4.00959,1208.6,1207.1,65.0384]
[1610023798644,4.00959,1208.6,1206.1,5.8388]
[1610023798940,4.00959,1208.6,1207.0,57.8144]
[1610023799141,4.00959,1208.6,1206.1,5.8388]
[1610023799342,4.00959,1208.6,1207.5,47.7285]
[1610023802548,4.00959,1208.3,1207.5,47.7285]
[1610023802747,11.051,1208.7,1207.5,47.7285]
[1610023804452,4.00959,1208.6,1207.5,47.7285]
[1610023806455,4.00959,1208.4,1207.5,47.7285]
[1610023806654,4.00959,1208.4,1206.1,5.8388]
[1610023807057,4.00959,1208.4,1206.7,58.506]
[1610023808455,4.00959,1208.2,1206.7,58.506]
[1610023808656,4.00959,1208.2,1206.1,5.8388]
[1610023808856,4.00959,1208.2,1207.1,48.4341]
[1610023809057,4.00959,1208.2,1206.1,5.8388]
[1610023809257,11.051,1208.7,1207.6,49.9329]
[1610023810558,4.00959,1208.6,1207.6,49.9329]
[1610023812662,11.051,1208.7,1207.6,49.9329]
[1610023817068,11.051,1208.7,1206.2,6.1055]
[1610023817267,11.051,1208.7,1207.5,60.025]
[1610023817468,11.051,1208.7,1206.2,6.1055]
[1610023817670,11.051,1208.7,1207.0,68.8514]
[1610023824980,3.674,1208.7,1207.0,68.8514]
[1610023825380,54.4631,1209.5,1207.0,68.8514]
[1610023826482,4.00959,1209.4,1207.0,68.8514]
[1610023826683,4.00959,1209.4,1208.0,60.3351]
[1610023830288,3.674,1209.5,1208.0,60.3351]
[1610023831490,3.674,1209.5,1206.8,5.8655]
[1610023831689,3.674,1209.5,1208.2,46.3889]
[1610023831888,3.674,1209.5,1206.8,5.8655]
[1610023832089,3.674,1209.5,1208.9,57.5061]
[1610023842101,3.674,1209.5,1207.7,5.675]
[1610023842302,3.674,1209.5,1208.1,53.2367]
[1610023848917,3.674,1209.5,1207.7,5.675]
[1610023849114,3.674,1209.5,1208.8,65.8009]
[1610023850615,3.674,1209.5,1207.7,5.675]
[1610023850813,3.674,1209.5,1208.1,57.7248]
[1610023851314,3.674,1209.5,1207.7,5.675]
[1610023851615,3.674,1209.5,1208.5,46.7565]
[1610023851816,3.674,1209.5,1207.7,5.675]
[1610023852015,3.674,1209.5,1208.2,61.8753]
[1610023852217,3.674,1209.5,1207.7,5.675]
[1610023852417,3.674,1209.5,1208.6,65.5913]
[1610023852615,3.674,1209.5,1207.7,5.675]
[1610023853021,7.377,1209.9,1209.0,62.0191]
[1610023853218,7.68359,1210.3,1209.0,62.0191]
[1610023857323,3.674,1210.3,1209.0,62.0191]
[1610023865240,3.6518239,1210.3,1209.0,62.0191]
[1610023868447,3.6518239,1210.3,1207.8,14.19660725]
[1610023868646,27.9265,1211.4,1209.2,64.9921]
[1610023868846,4.00959,1211.0,1207.8,5.9996]
[1610023869044,4.00959,1211.0,1210.0,64.2216]
[1610023869442,22.043,1211.4,1210.0,64.2216]
[1610023870948,4.00959,1211.2,1210.0,64.2216]
[1610023871447,22.043,1211.4,1210.0,64.2216]
[1610023872850,26.05259,1211.4,1210.0,64.2216]
[1610023877261,26.05259,1211.4,1208.6,5.7221]
[1610023877459,26.05259,1211.4,1209.1,66.8081]
[1610023877859,26.05259,1211.4,1208.6,5.7221]
[1610023878061,26.05259,1211.4,1209.9,48.908]
[1610023878460,26.05259,1211.4,1208.6,5.7221]
[1610023878660,26.05259,1211.4,1209.5,46.1595]
[1610023878860,4.00959,1210.9,1209.5,46.1595]
[1610023885066,4.00959,1210.6,1209.5,46.1595]
[1610023885268,25.717,1211.4,1209.5,46.1595]
[1610023887067,4.00959,1210.5,1209.5,46.1595]
[1610023890371,4.00959,1210.5,1208.5,6.0295]
[1610023890569,7.68359,1210.5,1208.5,6.0295]
[1610023890771,7.68359,1210.5,1208.5,69.2154]
[1610023890969,4.00959,1210.0,1208.5,69.2154]
[1610023892370,4.00959,1210.0,1208.5,63.1859]
[1610023896372,3.674,1210.5,1208.5,63.1859]
[1610023897174,4.00959,1210.3,1208.5,63.1859]
[1610023898876,3.674,1210.5,1208.5,63.1859]
[1610023899077,4.00959,1210.4,1208.5,63.1859]
[1610023902985,4.00959,1210.4,1207.5,8.19893906]
[1610023903184,4.00959,1210.4,1208.7,65.444]
[1610023903384,4.00959,1210.4,1207.5,8.19893906]
[1610023903585,4.00959,1210.4,1209.1,58.8868]
[1610023904191,4.00959,1210.4,1207.3,6.2284]
[1610023904387,4.00959,1210.4,1207.8,68.3609]
[1610023904788,4.00959,1210.4,1207.9,5.7179]
[1610023905091,4.00959,1210.0,1207.9,5.7179]
[1610023906490,4.00959,1210.0,1208.6,62.9831]
[1610023906692,4.00959,1210.0,1207.9,5.7179]
[1610023906891,4.00959,1210.0,1208.5,67.3712]
[1610023907090,4.00959,1210.0,1207.9,5.7179]
[1610023907292,4.00959,1210.0,1208.4,57.9054]
[1610023907492,4.00959,1210.0,1207.9,5.7179]
[1610023907693,4.00959,1210.0,1208.8,49.1045]
[1610023908294,3.674,1210.5,1208.8,49.1045]
[1610023908493,3.674,1210.5,1207.9,5.7179]
[1610023908692,3.674,1210.5,1209.3,63.6099]
[1610023908892,9.6905,1211.3,1207.9,5.7179]
[1610023909092,4.00959,1210.5,1209.6,60.2071]
[1610023909593,9.6905,1211.3,1209.6,60.2071]
[1610023909894,3.674,1211.3,1209.6,60.2071]
[1610023911093,4.00959,1211.0,1209.6,60.2071]
[1610023913196,4.00959,1210.6,1209.6,60.2071]
[1610023914497,3.674,1211.3,1209.6,60.2071]
[1610023915197,4.00959,1210.8,1209.6,60.2071]
[1610023916800,3.674,1211.3,1209.6,60.2071]
[1610023917301,4.00959,1211.0,1209.6,60.2071]
[1610023923313,4.00959,1210.7,1209.6,60.2071]
[1610023928326,4.00959,1210.7,1208.4,5.9289]
[1610023928526,4.00959,1210.7,1208.7,49.8274]
[1610023929426,64.6537,1211.2,1208.7,49.8274]
[1610023931330,4.00959,1210.1,1208.7,49.8274]
[1610023934629,7.68359,1210.1,1208.7,49.8274]
[1610023935233,4.00959,1210.1,1208.7,49.8274]
[1610023935431,7.68359,1210.1,1208.7,49.8274]
[1610023936534,4.00959,1210.1,1208.7,49.8274]
[1610023937236,7.68359,1210.1,1208.7,49.8274]
[1610023937438,4.00959,1209.9,1208.7,49.8274]
[1610023939440,4.00959,1209.7,1207.4,5.6835]
[1610023939642,4.00959,1209.7,1208.3,52.5698]
[1610023941441,4.00959,1209.1,1208.3,52.5698]
[1610023944344,3.674,1210.1,1208.3,52.5698]
[1610023945545,4.00959,1209.2,1208.3,52.5698]
[1610023948753,3.674,1210.1,1208.3,52.5698]
[1610023949454,4.00959,1209.2,1208.3,52.5698]
[1610023949656,3.674,1210.1,1208.3,52.5698]
[1610023949856,3.674,1210.1,1207.4,5.6835]
[1610023950056,3.674,1210.1,1208.2,62.9363]
[1610023950255,3.674,1210.1,1207.4,5.6835]
[1610023950456,3.674,1210.1,1208.1,63.9608]
[1610023951556,3.674,1210.1,1208.3,63.4425]
[1610023951957,3.674,1210.1,1207.4,5.6835]
[1610023952157,3.674,1210.1,1208.3,68.6114]
[1610023952358,3.674,1210.1,1207.4,5.6835]
[1610023952558,3.674,1210.1,1208.2,49.3672]
[1610023952761,3.674,1210.1,1207.4,5.6835]
[1610023952960,3.674,1210.1,1208.2,49.979]
[1610023953161,3.674,1210.1,1207.4,5.6835]
[1610023953362,3.674,1210.1,1208.2,59.2071]
[1610023953561,4.00959,1209.9,1207.4,5.6835]
[1610023953761,4.00959,1209.9,1208.8,50.243]
[1610023958668,3.674,1210.1,1208.8,50.243]
[1610023958870,3.674,1210.1,1207.4,5.6835]
[1610023959069,3.674,1211.2,1208.9,62.4955]
[1610023959271,3.674,1211.2,1207.4,5.6835]
[1610023959470,4.00959,1210.7,1209.0,59.3976]
[1610023959671,4.00959,1210.7,1207.4,5.6835]
[1610023959871,4.00959,1210.7,1208.7,67.6784]
[1610023960978,4.00959,1210.7,1207.4,5.6835]
[1610023961177,4.00959,1210.7,1208.8,56.2526]
[1610023961377,4.00959,1210.7,1207.8,8.1966342]
[1610023961582,4.00959,1210.7,1209.0,67.5969]
[1610023962078,4.00959,1210.7,1208.0,6.051]
[1610023962277,4.00959,1210.7,1209.5,50.3296]
[1610023965482,4.00959,1210.2,1209.5,50.3296]
[1610023966084,4.00959,1210.2,1208.0,6.051]
[1610023966284,4.00959,1210.2,1208.5,52.6574]
[1610023966484,7.68359,1210.2,1208.5,52.6574]
[1610023967585,4.00959,1210.0,1208.5,52.6574]
[1610023976797,11.051,1210.2,1208.5,52.6574]
[1610023976996,11.051,1210.2,1209.2,48.3665]
[1610023977195,16.7708,1211.3,1209.2,48.3665]
[1610023977799,4.00959,1210.4,1209.2,48.3665]
[1610023979700,16.7708,1211.3,1209.2,48.3665]
[1610023979701,4.00959,1210.1,1209.2,48.3665]
[1610023982708,16.7708,1211.3,1209.2,48.3665]
[1610023983708,4.00959,1210.5,1209.2,48.3665]
[1610023983908,3.674,1210.5,1209.2,48.3665]
[1610023985810,4.00959,1210.4,1209.2,48.3665]
[1610023987815,3.674,1210.5,1209.2,48.3665]
[1610023989815,4.00959,1210.1,1209.2,48.3665]
[1610023990014,3.674,1210.5,1209.2,48.3665]
[1610023991820,4.00959,1210.2,1209.2,48.3665]
[1610023994022,4.00959,1210.2,1208.0,6.051]
[1610023994225,4.00959,1210.2,1208.6,66.5882]
[1610023995929,4.00959,1210.0,1208.6,66.5882]
[1610023997933,4.00959,1209.6,1208.6,66.5882]
[1610023999432,3.674,1210.5,1208.6,66.5882]
[1610023999832,4.00959,1210.0,1208.6,66.5882]
[1610024000033,3.674,1210.5,1208.6,66.5882]
[1610024001838,4.00959,1210.2,1208.6,66.5882]
[1610024003845,4.00959,1209.7,1208.6,66.5882]
[1610024004946,3.674,1210.5,1208.6,66.5882]
[1610024005949,4.00959,1209.7,1208.6,66.5882]
[1610024006950,4.00959,1209.7,1208.3,55.8961]
[1610024007853,4.00959,1209.4,1208.3,55.8961]
[1610024013260,3.674,1210.5,1207.2,11.9467]
[1610024013459,3.674,1210.5,1208.2,53.6301]
[1610024013659,3.674,1210.5,1207.2,11.9467]
[1610024013858,4.00959,1209.7,1208.2,57.7385]
[1610024014061,7.68359,1209.7,1207.2,11.9467]
[1610024014259,7.68359,1209.7,1208.7,51.4856]
[1610024014460,4.00959,1209.7,1208.7,51.4856]
[1610024016159,5.73,1210.7,1208.7,51.4856]
[1610024016859,3.674,1210.7,1208.7,51.4856]
[1610024018060,4.00959,1210.1,1208.7,51.4856]
[1610024023366,3.674,1210.7,1208.7,51.4856]
[1610024023568,3.674,1210.7,1207.2,11.9467]
[1610024023767,3.674,1210.7,1208.7,48.9203]
[1610024023968,4.00959,1210.4,1207.2,11.9467]
[1610024024168,4.00959,1210.4,1209.4,49.9675]
[1610024026970,4.00959,1210.4,1208.2,6.1418]
[1610024027171,3.674,1210.7,1209.5,68.5697]
[1610024027370,3.674,1210.7,1208.2,6.1418]
[1610024027572,3.674,1210.7,1209.5,64.0329]
[1610024030673,3.674,1210.7,1208.2,6.1418]
[1610024030875,3.674,1210.7,1209.4,61.1971]
[1610024031074,3.674,1210.7,1208.2,6.1418]
[1610024031274,3.674,1210.7,1209.5,65.6492]
[1610024031474,3.674,1210.7,1208.2,6.1418]
[1610024031676,3.674,1210.7,1210.0,63.4451]
[1610024036377,3.674,1210.7,1208.9,5.649]
[1610024036579,3.674,1210.7,1210.2,60.3032]
[1610024036780,3.674,1210.7,1208.9,5.649]
[1610024037178,3.674,1210.7,1210.1,57.6332]
[1610024037879,3.674,1210.7,1208.9,5.649]
[1610024038079,3.674,1210.7,1209.9,66.8062]
[1610024042887,3.674,1210.7,1208.9,5.649]
[1610024043087,3.674,1210.7,1210.1,65.6439]
[1610024043487,3.674,1210.7,1209.7,59.2787]
[1610024043687,64.6618,1211.2,1209.7,59.2787]
[1610024044089,4.00959,1210.7,1209.7,59.2787]
[1610024044289,64.6618,1211.2,1209.7,59.2787]
[1610024044489,7.377,1211.2,1209.7,55.5449]
[1610024044691,7.377,1211.2,1208.9,5.649]
[1610024045092,7.377,1211.2,1210.1,64.1473]
[1610024045292,14.666,1211.4,1210.1,64.1473]
[1610024046094,4.00959,1211.3,1210.1,64.1473]
[1610024047095,14.666,1211.4,1210.1,64.1473]
[1610024050101,18.67559,1211.4,1210.1,64.1473]
[1610024051202,18.67559,1211.4,1208.9,5.649]
[1610024051403,14.666,1211.4,1210.2,52.7506]
[1610024051602,14.666,1211.4,1210.8,52.6643]
[1610024051804,10.992,1211.4,1210.8,52.6643]
[1610024052004,11.051,1212.3,1210.8,52.6643]
[1610024052203,4.00959,1211.7,1210.8,52.6643]
[1610024052605,11.051,1212.3,1210.8,52.6643]
[1610024054104,4.00959,1212.0,1210.8,52.6643]
[1610024060108,4.00959,1211.7,1210.8,52.6643]
[1610024060608,11.051,1212.3,1210.8,52.6643]
[1610024060808,11.051,1212.3,1209.8,6.1704]
[1610024061209,11.051,1212.3,1210.9,58.5807]
[1610024061409,11.051,1212.3,1209.8,6.1704]
[1610024061610,11.051,1212.3,1210.8,68.5299]
[1610024062210,4.00959,1212.1,1210.8,61.2052]
[1610024062610,4.00959,1212.1,1209.8,6.1704]
[1610024063011,4.00959,1212.1,1210.9,51.1087]
[1610024063211,4.00959,1212.1,1209.8,6.1704]
[1610024063411,11.051,1212.3,1211.7,53.43]
[1610024063610,3.674,1212.3,1211.7,53.43]
[1610024086636,3.674,1212.3,1211.9,54.4804]
[1610024086837,3.674,1212.3,1210.6,8.17748412]
[1610024087238,3.674,1212.3,1211.8,60.2729]
[1610024088439,15.06059,1213.4,1211.8,60.2729]
[1610024093343,15.06059,1213.4,1211.0,6.111]
[1610024093543,15.06059,1213.4,1211.3,60.1057]
[1610024094241,4.00959,1213.0,1211.3,60.1057]
[1610024096343,4.00959,1212.8,1211.3,60.1057]
[1610024098045,11.051,1213.4,1211.3,60.1057]
[1610024098446,4.00959,1213.0,1211.3,60.1057]
[1610024109559,4.00959,1213.0,1211.0,6.111]
[1610024109759,11.051,1213.4,1212.0,48.5013]
[1610024110359,4.00959,1213.3,1212.0,48.5013]
[1610024116264,11.051,1213.4,1212.0,48.5013]
[1610024116463,11.051,1213.4,1211.9,64.4693]
[1610024117665,10.051,1213.4,1211.9,64.4693]
[1610024117868,3.674,1213.4,1211.9,64.4693]
[1610024127580,3.674,1213.4,1211.0,6.111]
[1610024127781,3.674,1213.4,1212.5,49.5188]
[1610024127982,3.674,1213.4,1211.0,6.111]
[1610024128183,3.674,1213.4,1213.2,67.9178]
[1610024128583,15.15381176,1213.9,1213.2,67.9178]
[1610024130385,7.77681176,1213.9,1213.2,67.9178]
[1610024136798,7.77681176,1213.9,1211.9,5.7627]
[1610024136997,7.77681176,1213.9,1213.7,53.2522]
[1610024137196,7.77681176,1213.9,1211.9,5.7627]
[1610024137597,7.77681176,1213.9,1213.0,64.6026]
[1610024147514,7.77681176,1213.9,1212.0,5.9121]
[1610024147713,7.77681176,1213.9,1212.6,64.1724]
[1610024148113,7.77681176,1213.9,1212.6,72.33684001]
[1610024148314,7.77681176,1213.9,1212.6,64.1724]
[1610024149314,7.77681176,1213.9,1212.0,5.9121]
[1610024149915,7.77681176,1213.9,1212.2,8.16666531]
[1610024150115,51.8471,1213.7,1212.2,8.16666531]
[1610024150515,51.8471,1213.7,1211.4,53.8366]
[1610024152516,4.00959,1213.2,1211.4,53.8366]
[1610024152718,13.26179,1213.2,1211.4,53.8366]
[1610024152916,50.022,1213.0,1210.9,8.17581268]
[1610024153116,7.68359,1213.2,1210.9,8.17581268]
[1610024153317,57.59149,1213.2,1210.6,63.9903]
[1610024154516,4.00959,1212.7,1210.6,63.9903]
[1610024154718,7.9922,1212.6,1210.6,63.9903]
[1610024156019,4.00959,1212.7,1205.7,16.8678]
[1610024156220,50.7549,1212.5,1209.7,47.5685]
[1610024156623,4.00959,1212.0,1209.7,47.5685]
[1610024157029,13.57129,1212.0,1209.7,47.5685]
[1610024157220,4.00959,1212.0,1205.8,5.9408]
[1610024157421,51.722,1211.7,1209.2,64.175]
[1610024158521,4.00959,1210.9,1209.2,64.175]
[1610024158822,4.00959,1210.9,1209.0,8.18883433]
[1610024159021,4.00959,1210.9,1208.5,65.919]
[1610024164533,4.00959,1210.3,1208.5,65.919]
[1610024165935,4.00959,1210.3,1205.8,5.9408]
[1610024166136,2.2144,1212.8,1205.8,5.9408]
[1610024166338,2.2144,1212.8,1209.1,63.1951]
[1610024166548,4.00959,1211.1,1209.1,63.1951]
[1610024167146,69.3635,1213.1,1209.1,63.1951]
[1610024168944,66.9604,1213.1,1209.1,63.1951]
[1610024170741,4.00959,1211.7,1209.1,63.1951]
[1610024172643,4.00959,1211.1,1209.1,63.1951]
[1610024173442,4.00959,1211.1,1205.8,13.3178]
[1610024173643,4.00959,1211.1,1207.3,62.8445]
[1610024174647,4.00959,1210.3,1207.3,62.8445]
[1610024175046,4.00959,1210.3,1207.8,8.19671767]
[1610024175247,4.00959,1210.3,1208.1,7.3268]
[1610024175650,4.00959,1210.3,1205.8,5.9408]
[1610024175848,50.0465,1211.9,1207.5,67.4756]
[1610024176749,6.90599,1212.0,1204.8,3.674]
[1610024177149,6.90599,1212.0,1206.8,56.5166]
[1610024177750,4.00959,1212.0,1206.8,56.5166]
[1610024177949,4.00959,1212.0,1207.2,8.20090831]
[1610024178350,4.00959,1212.0,1208.5,57.8592]
[1610024178650,4.00959,1211.3,1208.5,57.8592]
[1610024180453,11.051,1212.3,1208.5,57.8592]
[1610024180653,4.00959,1212.1,1208.5,57.8592]
[1610024181055,4.00959,1212.1,1208.6,11.4678]
[1610024187266,11.051,1212.3,1209.8,68.222]
[1610024187865,11.051,1212.3,1209.9,5.9297]
[1610024188364,3.674,1212.3,1209.9,5.9297]
[1610024191171,11.051,1212.3,1209.9,5.9297]
[1610024191369,11.051,1212.3,1210.9,50.9609]
[1610024192671,3.674,1212.3,1210.9,50.9609]
[1610024193071,14.666,1212.5,1210.9,50.9609]
[1610024193271,17.2725,1213.8,1210.9,50.9609]
[1610024193674,17.2725,1213.8,1211.0,6.0817]
[1610024194675,4.00959,1213.7,1211.0,6.0817]
[1610024196377,11.051,1213.8,1211.8,50.1769]
[1610024204885,3.674,1213.8,1211.8,50.1769]
[1610024205283,17.1851,1215.1,1211.3,8.17291079]
[1610024205484,17.1851,1215.1,1212.7,60.457]
[1610024205684,11.051,1215.1,1212.7,60.457]
[1610024206784,15.06059,1215.1,1212.7,60.457]
[1610024208686,11.051,1215.1,1212.7,60.457]
[1610024212689,15.06059,1215.1,1212.7,60.457]
[1610024214788,11.051,1215.1,1212.7,60.457]
[1610024216795,4.00959,1214.8,1212.7,60.457]
[1610024218898,4.00959,1214.4,1212.7,60.457]
[1610024222101,4.00959,1214.4,1211.9,5.899]
[1610024222300,4.07381176,1213.9,1211.9,5.899]
[1610024222700,11.45081176,1213.9,1211.9,5.899]
[1610024223102,11.45081176,1213.9,1211.8,66.4423]
[1610024224802,4.00959,1213.6,1211.8,66.4423]
[1610024228906,11.45081176,1213.9,1211.8,66.4423]
[1610024230812,4.00959,1213.7,1211.8,66.4423]
[1610024232411,11.45081176,1213.9,1211.8,66.4423]
[1610024232812,15.46040176,1213.9,1211.8,66.4423]
[1610024235313,11.45081176,1213.9,1211.8,66.4423]
[1610024235514,11.45081176,1213.9,1211.8,6.0482]
[1610024235714,11.45081176,1213.9,1212.7,50.4457]
[1610024235914,7.77681176,1213.9,1212.7,50.4457]
[1610024236415,0.39981176,1213.9,1212.7,50.4457]
[1610024244018,0.39981176,1213.9,1211.9,5.9924]
[1610024244220,0.39981176,1213.9,1213.5,52.923]
[1610024245720,0.39981176,1213.9,1212.1,8.16753693]
[1610024246119,0.39981176,1213.9,1212.0,1.0]
[1610024246320,0.39981176,1213.9,1212.5,63.0848]
[1610024258739,0.39981176,1213.9,1212.5,69.227]
[1610024269641,0.39981176,1213.9,1212.5,6.1422]
[1610024269942,0.39981176,1213.9,1213.4,58.5941]
[1610024271042,0.39981176,1213.9,1212.6,6.2086]
[1610024271244,7.377,1214.9,1213.9,68.417]
[1610024271443,3.674,1215.8,1212.6,6.2086]
[1610024271642,3.674,1215.8,1214.6,45.799]
[1610024272344,4.07381176,1215.9,1214.6,45.799]
[1610024272546,0.39981176,1215.9,1214.6,45.799]
[1610024274247,12.76040176,1216.4,1214.6,45.799]
[1610024274948,12.76040176,1216.4,1216.3,4.00959]
[1610024275149,9.08640176,1216.4,1216.3,4.00959]
[1610024276951,7.377,1216.4,1216.3,4.00959]
[1610024277554,7.377,1216.4,1216.3,54.42019]
[1610024280354,4.00959,1217.0,1216.3,54.42019]
[1610024280956,4.00959,1217.0,1216.9,4.00959]
[1610024281457,7.377,1217.5,1216.9,4.00959]
[1610024281857,7.377,1217.5,1217.0,61.7091]
[1610024282058,7.377,1217.5,1216.9,4.00959]
[1610024282257,3.43608989,1217.5,1216.9,4.00959]
[1610024282461,11.39181176,1218.4,1217.0,46.6749]
[1610024282658,15.06581176,1218.4,1217.0,46.6749]
[1610024283059,15.06581176,1218.4,1217.7,4.00959]
[1610024283261,4.07381176,1218.4,1217.7,4.00959]
[1610024283659,4.07381176,1218.4,1217.0,46.6749]
[1610024285067,4.00959,1217.7,1217.5,4.00959]
[1610024292169,4.00959,1217.7,1214.7,6.127]
[1610024292368,11.38659,1217.7,1214.7,6.127]
[1610024292769,11.38659,1217.7,1215.5,58.1835]
[1610024292969,4.00959,1217.2,1216.9,4.00959]
[1610024293769,4.00959,1217.2,1215.5,58.1835]
[1610024293968,7.68359,1217.2,1214.7,6.127]
[1610024294169,7.68359,1217.2,1215.3,67.8096]
[1610024295071,4.00959,1216.7,1216.5,4.00959]
[1610024295272,3.674,1217.2,1216.5,4.00959]
[1610024297175,3.674,1217.2,1214.7,129.2576]
[1610024297176,4.00959,1217.1,1216.9,4.00959]
[1610024297573,4.00959,1217.1,1215.2,47.2967]
[1610024297774,7.68359,1217.1,1215.2,47.2967]
[1610024299074,4.00959,1216.1,1216.0,4.00959]
[1610024299473,4.00959,1216.1,1212.6,6.2223]
[1610024299675,4.00959,1216.1,1214.7,50.6253]
[1610024299874,4.00959,1216.1,1212.6,6.2223]
[1610024300074,7.68359,1216.1,1213.9,60.5148]
[1610024300875,7.68359,1216.1,1212.6,6.2223]
[1610024301075,4.00959,1215.1,1214.7,4.00959]
[1610024302681,67.806,1215.9,1213.8,54.9396]
[1610024303081,4.00959,1215.1,1214.7,4.00959]
[1610024304682,4.00959,1215.1,1214.1,50.5663]
[1610024305082,4.00959,1215.1,1215.0,4.00959]
[1610024306584,3.674,1216.1,1215.0,4.00959]
[1610024307084,3.674,1216.1,1215.5,4.00959]
[1610024307487,3.674,1216.1,1214.2,48.5306]
[1610024308186,3.674,1216.1,1212.6,6.2223]
[1610024308389,3.674,1216.1,1213.7,52.94]
[1610024309186,4.00959,1216.0,1215.8,4.00959]
[1610024309385,4.00959,1216.0,1215.1,66.8205]
[1610024309685,4.00959,1216.0,1212.6,6.2223]
[1610024310087,3.674,1216.1,1213.6,67.3604]
[1610024310487,3.674,1216.1,1213.7,6.1456]
[1610024311188,4.00959,1215.8,1215.4,4.00959]
[1610024311388,3.674,1216.1,1213.7,6.1456]
[1610024311590,3.674,1216.1,1214.5,56.5757]
[1610024313096,4.00959,1215.2,1215.1,4.00959]
[1610024314194,3.674,1216.1,1215.1,4.00959]
[1610024315094,4.00959,1215.5,1215.1,4.00959]
[1610024315693,3.674,1216.1,1214.5,56.5757]
[1610024317094,4.00959,1215.7,1215.6,4.00959]
[1610024319096,4.00959,1216.0,1215.6,4.00959]
[1610024319596,3.674,1216.1,1215.6,4.00959]
[1610024320700,3.674,1216.1,1215.6,57.59769]
[1610024321099,7.377,1216.4,1215.6,57.59769]
[1610024321298,7.377,1216.4,1216.0,4.00959]
[1610024321497,4.00959,1216.8,1216.0,4.00959]
[1610024323201,4.00959,1216.6,1216.5,4.00959]
[1610024325101,4.00959,1216.6,1215.6,53.5881]
[1610024325304,4.00959,1216.6,1216.1,4.00959]
[1610024325502,4.00959,1216.6,1215.3,47.6337]
[1610024325704,4.00959,1216.6,1213.8,5.8124]
[1610024325903,4.00959,1216.6,1214.4,61.8856]
[1610024327204,4.00959,1216.0,1215.8,4.00959]
[1610024329205,14.666,1217.0,1215.8,4.00959]
[1610024331208,14.666,1217.0,1216.5,4.00959]
[1610024331410,14.666,1217.0,1215.5,58.8049]
[1610024333209,4.00959,1216.5,1216.4,4.00959]
[1610024333913,4.00959,1216.5,1215.5,58.8049]
[1610024335221,4.00959,1215.9,1215.7,4.00959]
[1610024335917,14.666,1217.0,1215.7,4.00959]
[1610024337222,4.00959,1216.3,1216.2,4.00959]
[1610024338125,14.666,1217.0,1216.2,4.00959]
[1610024339226,4.00959,1216.3,1216.2,4.00959]
[1610024341327,4.00959,1216.5,1216.2,4.00959]
[1610024342831,4.00959,1216.5,1215.5,58.8049]
[1610024343030,4.00959,1216.5,1214.4,5.823]
[1610024343232,7.377,1216.5,1215.9,4.00959]
[1610024343431,64.0427,1217.0,1215.9,4.00959]
[1610024343432,14.666,1217.0,1215.9,4.00959]
[1610024345437,4.00959,1216.0,1215.6,4.00959]
[1610024345634,4.00959,1216.0,1213.8,5.792]
[1610024345835,7.68359,1216.0,1214.7,65.278]
[1610024346237,7.68359,1216.0,1213.9,6.121]
[1610024346635,7.68359,1216.0,1214.5,47.8293]
[1610024347438,4.00959,1215.8,1215.7,4.00959]
[1610024348237,3.674,1216.0,1215.7,4.00959]
[1610024349537,3.674,1216.0,1215.9,4.00959]
[1610024350338,4.00959,1216.2,1215.9,4.00959]
[1610024350538,4.00959,1216.2,1215.3,52.5948]